[Event "Titled Tuesday Blitz May 10 Early 2022"]
[White "Bodnar, Nikolay"]
[Black "Petre, Nad-Titus"]
[WhiteFideId "14106469"]
[BlackFideId "1204165"]
[WhiteElo "2296"]
[BlackElo "2354"]
[Result "1-0"]
[Round "02"]
[TimeControl "180+1"]
[Date "2022.05.11"]
[WhiteClock "0:01:22"]
[BlackClock "0:00:11"]

1. e4 {[%clk 0:03:00]}  c6 {[%clk 0:03:00]} 2. d4 {[%clk 0:03:00]}  d5 {[%clk 0:03:01]} 3. e5 {[%clk 0:03:00]}  Bf5 {[%clk 0:03:01]} 4. h4 {[%clk 0:03:01]}  h5 {[%clk 0:03:00]} 5. Bd3 {[%clk 0:03:01]}  Bxd3 {[%clk 0:02:55]} 6. Qxd3 {[%clk 0:03:02]}  Qa5+ {[%clk 0:02:56]} 7. Nd2 {[%clk 0:03:02]}  e6 {[%clk 0:02:56]} 8. Nf3 {[%clk 0:03:00]}  Qa6 {[%clk 0:02:57]} 9. c4 {[%clk 0:02:58]}  Nh6 {[%clk 0:02:54]} 10. O-O {[%clk 0:02:55]}  Nf5 {[%clk 0:02:54]} 11. b3 {[%clk 0:02:55]}  Be7 {[%clk 0:02:54]} 12. g3 {[%clk 0:02:54]}  c5 {[%clk 0:02:38]} 13. dxc5 {[%clk 0:02:51]}  Bxc5 {[%clk 0:02:33]} 14. Kg2 {[%clk 0:02:51]}  Nc6 {[%clk 0:02:27]} 15. Qb1 {[%clk 0:02:50]}  Rd8 {[%clk 0:02:14]} 16. a3 {[%clk 0:02:46]}  dxc4 {[%clk 0:02:00]} 17. b4 {[%clk 0:02:46]}  Bd4 {[%clk 0:01:43]} 18. b5 {[%clk 0:02:45]}  Qa4 {[%clk 0:01:35]} 19. bxc6 {[%clk 0:02:43]}  Bxa1 {[%clk 0:01:33]} 20. Qxa1 {[%clk 0:02:37]}  Qxc6 {[%clk 0:01:30]} 21. Qc3 {[%clk 0:02:32]}  b5 {[%clk 0:01:24]} 22. a4 {[%clk 0:02:32]}  a6 {[%clk 0:01:24]} 23. axb5 {[%clk 0:02:28]}  axb5 {[%clk 0:01:25]} 24. Ba3 {[%clk 0:02:26]}  Rd3 {[%clk 0:01:24]} 25. Qb4 {[%clk 0:02:25]}  Kd7 {[%clk 0:00:32]} 26. Rc1 {[%clk 0:01:59]}  Ra8 {[%clk 0:00:31]} 27. Rc3 {[%clk 0:01:59]}  Rxd2 {[%clk 0:00:22]} 28. Rxc4 {[%clk 0:01:45]}  Ne3+ {[%clk 0:00:21]} 29. Kh3 {[%clk 0:01:42]}  Nxc4 {[%clk 0:00:17]} 30. Qe7+ {[%clk 0:01:37]}  Kc8 {[%clk 0:00:16]} 31. Bd6 {[%clk 0:01:29]}  Nxd6 {[%clk 0:00:14]} 32. exd6 {[%clk 0:01:30]}  Rxd6 {[%clk 0:00:13]} 33. Qf8+ {[%clk 0:01:26]}  Rd8 {[%clk 0:00:12]} 34. Qxf7 {[%clk 0:01:26]}  Qd7 {[%clk 0:00:10]} 35. Qf4 {[%clk 0:01:25]}  Qc7 {[%clk 0:00:10]} 36. Qe4 {[%clk 0:01:23]}  Qd7 {[%clk 0:00:10]} 37. Qxa8+ {[%clk 0:01:22]}  Kc7 {[%clk 0:00:10]} 38. Qa7+ {[%clk 0:01:22]}  Kc6 {[%clk 0:00:11]} 39. Ne5+ {[%clk 0:01:22]} 1-0


[Site "https://www.chess.com"]

[Event "Titled Tuesday Blitz May 10 Early 2022"]
[White "Bommini, Mounika Akshaya"]
[Black "Rustemov, Alexander"]
[WhiteFideId "25019872"]
[BlackFideId "4119002"]
[WhiteElo "1671"]
[BlackElo "2704"]
[Result "0-1"]
[Round "02"]
[TimeControl "180+1"]
[Date "2022.05.11"]
[WhiteClock "0:00:02"]
[BlackClock "0:00:43"]

1. d4 {[%clk 0:03:00]}  f5 {[%clk 0:02:58]} 2. c4 {[%clk 0:02:57]}  Nf6 {[%clk 0:02:59]} 3. Nc3 {[%clk 0:02:57]}  g6 {[%clk 0:02:59]} 4. g3 {[%clk 0:02:57]}  Bg7 {[%clk 0:02:59]} 5. Bg2 {[%clk 0:02:57]}  O-O {[%clk 0:03:00]} 6. Nf3 {[%clk 0:02:56]}  d6 {[%clk 0:03:00]} 7. O-O {[%clk 0:02:56]}  Nc6 {[%clk 0:03:01]} 8. a3 {[%clk 0:02:53]}  e5 {[%clk 0:03:00]} 9. dxe5 {[%clk 0:02:28]}  dxe5 {[%clk 0:03:00]} 10. Qxd8 {[%clk 0:02:29]}  Rxd8 {[%clk 0:03:00]} 11. Nb5 {[%clk 0:02:29]}  Ne8 {[%clk 0:02:54]} 12. Ng5 {[%clk 0:02:12]}  e4 {[%clk 0:02:46]} 13. Bf4 {[%clk 0:01:58]}  h6 {[%clk 0:02:46]} 14. Nh3 {[%clk 0:01:50]}  Rd7 {[%clk 0:02:18]} 15. Rfd1 {[%clk 0:01:45]}  Rf7 {[%clk 0:02:06]} 16. f3 {[%clk 0:01:26]}  g5 {[%clk 0:01:59]} 17. Be3 {[%clk 0:01:22]}  exf3 {[%clk 0:01:59]} 18. exf3 {[%clk 0:01:20]}  Bxb2 {[%clk 0:01:47]} 19. Ra2 {[%clk 0:01:17]}  Bg7 {[%clk 0:01:46]} 20. f4 {[%clk 0:00:57]}  g4 {[%clk 0:01:46]} 21. Nf2 {[%clk 0:00:57]}  Be6 {[%clk 0:01:45]} 22. Bd5 {[%clk 0:00:45]}  Re7 {[%clk 0:01:44]} 23. Bc5 {[%clk 0:00:42]}  Nd6 {[%clk 0:01:36]} 24. Nxd6 {[%clk 0:00:35]}  cxd6 {[%clk 0:01:36]} 25. Bxd6 {[%clk 0:00:34]}  Ree8 {[%clk 0:01:36]} 26. Bc5 {[%clk 0:00:20]}  Rad8 {[%clk 0:01:00]} 27. Bxe6+ {[%clk 0:00:17]}  Rxe6 {[%clk 0:01:00]} 28. Rxd8+ {[%clk 0:00:17]}  Nxd8 {[%clk 0:01:00]} 29. Rd2 {[%clk 0:00:13]}  Nc6 {[%clk 0:00:59]} 30. Kf1 {[%clk 0:00:13]}  b6 {[%clk 0:00:58]} 31. Rd6 {[%clk 0:00:08]}  Rxd6 {[%clk 0:00:54]} 32. Bxd6 {[%clk 0:00:08]}  Kf7 {[%clk 0:00:55]} 33. c5 {[%clk 0:00:09]}  Ke6 {[%clk 0:00:55]} 34. Nd3 {[%clk 0:00:08]}  b5 {[%clk 0:00:54]} 35. Nb4 {[%clk 0:00:04]}  Nxb4 {[%clk 0:00:51]} 36. axb4 {[%clk 0:00:05]}  Bc3 {[%clk 0:00:50]} 37. Bf8 {[%clk 0:00:04]}  Kd5 {[%clk 0:00:46]} 38. Ke2 {[%clk 0:00:02]}  Bxb4 {[%clk 0:00:43]} 39. c6 {[%clk 0:00:02]}  Ba5 {[%clk 0:00:43]} 0-1


[Site "https://www.chess.com"]

[Event "Titled Tuesday Blitz May 10 Early 2022"]
[White "Bortnyk, Olexandr"]
[Black "Kozak, Antoni"]
[WhiteFideId "14120828"]
[BlackFideId "21832030"]
[WhiteElo "2723"]
[BlackElo "2322"]
[Result "1-0"]
[Round "02"]
[TimeControl "180+1"]
[Date "2022.05.10"]
[WhiteClock "0:00:40"]
[BlackClock "0:00:05"]

1. d4 {[%clk 0:03:00]}  d5 {[%clk 0:02:59]} 2. Nc3 {[%clk 0:03:00]}  Nf6 {[%clk 0:02:58]} 3. Bf4 {[%clk 0:02:57]}  e6 {[%clk 0:02:18]} 4. Nb5 {[%clk 0:02:57]}  Na6 {[%clk 0:02:17]} 5. e3 {[%clk 0:02:57]}  c6 {[%clk 0:02:06]} 6. Nc3 {[%clk 0:02:57]}  Nb8 {[%clk 0:02:03]} 7. Nf3 {[%clk 0:02:57]}  Bd6 {[%clk 0:02:03]} 8. Ne5 {[%clk 0:02:57]}  Qc7 {[%clk 0:02:01]} 9. Qf3 {[%clk 0:02:54]}  Nbd7 {[%clk 0:02:00]} 10. Nd3 {[%clk 0:02:46]}  e5 {[%clk 0:01:57]} 11. dxe5 {[%clk 0:02:42]}  Nxe5 {[%clk 0:01:57]} 12. Nxe5 {[%clk 0:02:37]}  Bxe5 {[%clk 0:01:57]} 13. Qg3 {[%clk 0:02:38]}  Bxf4 {[%clk 0:01:22]} 14. Qxg7 {[%clk 0:02:36]}  Rg8 {[%clk 0:01:22]} 15. Qxf6 {[%clk 0:02:37]}  Be5 {[%clk 0:01:22]} 16. Qh4 {[%clk 0:02:33]}  Bf5 {[%clk 0:01:20]} 17. Bd3 {[%clk 0:02:28]}  Bxd3 {[%clk 0:01:11]} 18. cxd3 {[%clk 0:02:29]}  Rxg2 {[%clk 0:01:06]} 19. Qxh7 {[%clk 0:02:27]}  Qd7 {[%clk 0:00:46]} 20. d4 {[%clk 0:02:21]}  Bd6 {[%clk 0:00:42]} 21. Qh8+ {[%clk 0:02:14]}  Bf8 {[%clk 0:00:41]} 22. Qe5+ {[%clk 0:02:04]}  Be7 {[%clk 0:00:37]} 23. Rc1 {[%clk 0:01:55]}  Qg4 {[%clk 0:00:25]} 24. Ne2 {[%clk 0:01:35]}  f6 {[%clk 0:00:19]} 25. Qf4 {[%clk 0:01:27]}  Qg6 {[%clk 0:00:19]} 26. Qc7 {[%clk 0:01:23]}  Qe4 {[%clk 0:00:10]} 27. Qxb7 {[%clk 0:01:15]}  Rd8 {[%clk 0:00:10]} 28. Rxc6 {[%clk 0:00:51]}  Rg7 {[%clk 0:00:06]} 29. Rf1 {[%clk 0:00:45]}  Kf8 {[%clk 0:00:05]} 30. Kd2 {[%clk 0:00:43]}  a5 {[%clk 0:00:05]} 31. Qb6 {[%clk 0:00:40]} 1-0


[Site "https://www.chess.com"]

[Event "Titled Tuesday Blitz May 10 Early 2022"]
[White "Cabarkapa, Novak"]
[Black "Baches Garcia, Guillermo"]
[WhiteFideId "943746"]
[BlackFideId "2209764"]
[WhiteElo "2454"]
[BlackElo "2506"]
[Result "1-0"]
[Round "02"]
[TimeControl "180+1"]
[Date "2022.05.11"]
[WhiteClock "0:00:23"]
[BlackClock "0:00:07"]

1. d4 {[%clk 0:03:00]}  Nf6 {[%clk 0:02:59]} 2. Nc3 {[%clk 0:03:01]}  d5 {[%clk 0:02:58]} 3. Bf4 {[%clk 0:03:01]}  e6 {[%clk 0:02:58]} 4. e3 {[%clk 0:03:01]}  Bd6 {[%clk 0:02:58]} 5. Qf3 {[%clk 0:03:00]}  a6 {[%clk 0:02:56]} 6. O-O-O {[%clk 0:03:00]}  O-O {[%clk 0:02:53]} 7. g4 {[%clk 0:03:00]}  c5 {[%clk 0:02:47]} 8. g5 {[%clk 0:02:59]}  Ne8 {[%clk 0:02:42]} 9. h4 {[%clk 0:02:59]}  cxd4 {[%clk 0:02:38]} 10. exd4 {[%clk 0:02:59]}  Bxf4+ {[%clk 0:02:38]} 11. Qxf4 {[%clk 0:02:59]}  Qd6 {[%clk 0:02:37]} 12. Qe3 {[%clk 0:02:47]}  Nc6 {[%clk 0:02:29]} 13. f4 {[%clk 0:02:46]}  f6 {[%clk 0:02:14]} 14. Kb1 {[%clk 0:02:41]}  fxg5 {[%clk 0:02:05]} 15. hxg5 {[%clk 0:02:38]}  g6 {[%clk 0:01:50]} 16. Rh4 {[%clk 0:02:25]}  Ng7 {[%clk 0:01:29]} 17. Bh3 {[%clk 0:02:07]}  Ne7 {[%clk 0:01:18]} 18. Qd2 {[%clk 0:01:48]}  Nef5 {[%clk 0:01:10]} 19. Bxf5 {[%clk 0:01:48]}  Nxf5 {[%clk 0:01:08]} 20. Rh3 {[%clk 0:01:47]}  Bd7 {[%clk 0:01:04]} 21. Nf3 {[%clk 0:01:43]}  Be8 {[%clk 0:00:55]} 22. Rdh1 {[%clk 0:01:41]}  Rf7 {[%clk 0:00:51]} 23. Ne5 {[%clk 0:01:41]}  Rc7 {[%clk 0:00:49]} 24. Qh2 {[%clk 0:01:37]}  Qe7 {[%clk 0:00:47]} 25. Ne2 {[%clk 0:01:30]}  b5 {[%clk 0:00:44]} 26. Nd3 {[%clk 0:01:05]}  Raa7 {[%clk 0:00:42]} 27. Nc5 {[%clk 0:00:57]}  Qd6 {[%clk 0:00:27]} 28. Qf2 {[%clk 0:00:57]}  Rg7 {[%clk 0:00:24]} 29. Nc1 {[%clk 0:00:56]}  Rac7 {[%clk 0:00:24]} 30. N1d3 {[%clk 0:00:56]}  Bc6 {[%clk 0:00:17]} 31. Re1 {[%clk 0:00:56]}  Bd7 {[%clk 0:00:17]} 32. Qg1 {[%clk 0:00:52]}  Bc8 {[%clk 0:00:17]} 33. Rh2 {[%clk 0:00:52]}  a5 {[%clk 0:00:17]} 34. Rhe2 {[%clk 0:00:52]}  Rce7 {[%clk 0:00:16]} 35. Re5 {[%clk 0:00:49]}  b4 {[%clk 0:00:16]} 36. Qf2 {[%clk 0:00:48]}  Qb6 {[%clk 0:00:16]} 37. Nc1 {[%clk 0:00:41]}  a4 {[%clk 0:00:16]} 38. Ne2 {[%clk 0:00:40]}  a3 {[%clk 0:00:15]} 39. b3 {[%clk 0:00:40]}  Rgf7 {[%clk 0:00:14]} 40. Ng3 {[%clk 0:00:40]}  Nd6 {[%clk 0:00:13]} 41. Nxe6 {[%clk 0:00:33]}  Nb5 {[%clk 0:00:13]} 42. Nc5 {[%clk 0:00:33]}  Nc3+ {[%clk 0:00:12]} 43. Ka1 {[%clk 0:00:33]}  Rxe5 {[%clk 0:00:12]} 44. Rxe5 {[%clk 0:00:34]}  Kg7 {[%clk 0:00:11]} 45. Qe3 {[%clk 0:00:26]}  Qb5 {[%clk 0:00:11]} 46. Qe1 {[%clk 0:00:24]}  Bf5 {[%clk 0:00:11]} 47. Re8 {[%clk 0:00:23]}  Bxc2 {[%clk 0:00:07]} 48. Qe5+ {[%clk 0:00:23]} 1-0


[Site "https://www.chess.com"]

[Event "Titled Tuesday Blitz May 10 Early 2022"]
[White "Carlsen, Magnus"]
[Black "Skliarov, Viktor"]
[WhiteFideId "1503014"]
[BlackFideId "14106736"]
[WhiteElo "2832"]
[BlackElo "2229"]
[Result "1-0"]
[Round "02"]
[TimeControl "180+1"]
[Date "2022.05.10"]
[WhiteClock "0:01:27"]
[BlackClock "0:00:02"]

1. b3 {[%clk 0:03:00]}  e5 {[%clk 0:02:57]} 2. Bb2 {[%clk 0:03:01]}  Nc6 {[%clk 0:02:57]} 3. c4 {[%clk 0:02:59]}  Nf6 {[%clk 0:02:57]} 4. Nf3 {[%clk 0:02:59]}  e4 {[%clk 0:02:54]} 5. Nd4 {[%clk 0:02:59]}  Nxd4 {[%clk 0:02:42]} 6. Bxd4 {[%clk 0:02:55]}  b6 {[%clk 0:02:43]} 7. e3 {[%clk 0:02:55]}  Bb7 {[%clk 0:02:40]} 8. Nc3 {[%clk 0:02:55]}  c5 {[%clk 0:02:26]} 9. Be5 {[%clk 0:02:51]}  d6 {[%clk 0:02:21]} 10. Bf4 {[%clk 0:02:51]}  Be7 {[%clk 0:02:19]} 11. g4 {[%clk 0:02:51]}  h6 {[%clk 0:01:51]} 12. Bg2 {[%clk 0:02:50]}  Qd7 {[%clk 0:01:51]} 13. h3 {[%clk 0:02:42]}  d5 {[%clk 0:01:31]} 14. Qb1 {[%clk 0:02:29]}  dxc4 {[%clk 0:01:13]} 15. bxc4 {[%clk 0:02:28]}  Rd8 {[%clk 0:01:03]} 16. O-O {[%clk 0:02:27]}  g5 {[%clk 0:00:55]} 17. Bg3 {[%clk 0:02:22]}  h5 {[%clk 0:00:52]} 18. gxh5 {[%clk 0:02:16]}  Rxh5 {[%clk 0:00:51]} 19. a4 {[%clk 0:01:54]}  Rxh3 {[%clk 0:00:34]} 20. a5 {[%clk 0:01:54]}  Rxg3 {[%clk 0:00:20]} 21. fxg3 {[%clk 0:01:53]}  Qxd2 {[%clk 0:00:20]} 22. Qe1 {[%clk 0:01:44]}  Qxe1 {[%clk 0:00:16]} 23. Rfxe1 {[%clk 0:01:44]}  Bd6 {[%clk 0:00:14]} 24. axb6 {[%clk 0:01:42]}  axb6 {[%clk 0:00:15]} 25. Ra7 {[%clk 0:01:38]}  Rd7 {[%clk 0:00:11]} 26. Rd1 {[%clk 0:01:38]}  Bc6 {[%clk 0:00:05]} 27. Ra6 {[%clk 0:01:35]}  Bc7 {[%clk 0:00:04]} 28. Rxd7 {[%clk 0:01:34]}  Kxd7 {[%clk 0:00:05]} 29. Bh3+ {[%clk 0:01:34]}  Kd6 {[%clk 0:00:02]} 30. Bf5 {[%clk 0:01:27]}  Ke5 {[%clk 0:00:02]} 31. g4 {[%clk 0:01:27]} 1-0


[Site "https://www.chess.com"]

[Event "Titled Tuesday Blitz May 10 Early 2022"]
[White "Cherniaiev, Tykhon"]
[Black "Shashikant, Kutwal"]
[WhiteFideId "14182360"]
[BlackFideId "5006520"]
[WhiteElo "2289"]
[BlackElo "2321"]
[Result "1-0"]
[Round "02"]
[TimeControl "180+1"]
[Date "2022.05.11"]
[WhiteClock "0:00:06"]
[BlackClock "0:00:05"]

1. Nf3 {[%clk 0:02:59]}  d5 {[%clk 0:02:59]} 2. c4 {[%clk 0:02:55]}  c6 {[%clk 0:02:59]} 3. d4 {[%clk 0:02:53]}  Nf6 {[%clk 0:02:58]} 4. e3 {[%clk 0:02:54]}  e6 {[%clk 0:02:58]} 5. Bd3 {[%clk 0:02:53]}  Nbd7 {[%clk 0:02:55]} 6. O-O {[%clk 0:02:53]}  Bd6 {[%clk 0:02:55]} 7. Nbd2 {[%clk 0:02:51]}  Qe7 {[%clk 0:02:54]} 8. e4 {[%clk 0:02:51]}  dxe4 {[%clk 0:02:53]} 9. Nxe4 {[%clk 0:02:52]}  Nxe4 {[%clk 0:02:52]} 10. Bxe4 {[%clk 0:02:52]}  Nf6 {[%clk 0:02:53]} 11. Bc2 {[%clk 0:02:50]}  c5 {[%clk 0:02:52]} 12. Qe2 {[%clk 0:02:50]}  O-O {[%clk 0:02:46]} 13. Bg5 {[%clk 0:02:42]}  h6 {[%clk 0:02:39]} 14. Bh4 {[%clk 0:02:41]}  cxd4 {[%clk 0:02:22]} 15. Nxd4 {[%clk 0:02:39]}  e5 {[%clk 0:02:16]} 16. Nf5 {[%clk 0:02:37]}  Bxf5 {[%clk 0:02:17]} 17. Bxf5 {[%clk 0:02:38]}  e4 {[%clk 0:02:17]} 18. Bxf6 {[%clk 0:02:13]}  Qxf6 {[%clk 0:02:18]} 19. Bxe4 {[%clk 0:02:11]}  Rae8 {[%clk 0:02:06]} 20. Rfe1 {[%clk 0:00:49]}  Re7 {[%clk 0:01:52]} 21. Rad1 {[%clk 0:00:36]}  Rfe8 {[%clk 0:01:45]} 22. f3 {[%clk 0:00:25]}  Qe5 {[%clk 0:01:07]} 23. Bh7+ {[%clk 0:00:16]}  Kxh7 {[%clk 0:01:04]} 24. Qc2+ {[%clk 0:00:16]}  g6 {[%clk 0:00:53]} 25. Rxe5 {[%clk 0:00:16]}  Bxe5 {[%clk 0:00:53]} 26. g3 {[%clk 0:00:16]}  Bg7 {[%clk 0:00:48]} 27. Rd2 {[%clk 0:00:13]}  Re3 {[%clk 0:00:47]} 28. Kf2 {[%clk 0:00:12]}  b6 {[%clk 0:00:36]} 29. b4 {[%clk 0:00:12]}  Rc3 {[%clk 0:00:34]} 30. Qd1 {[%clk 0:00:12]}  Rxc4 {[%clk 0:00:34]} 31. Rd7 {[%clk 0:00:12]}  Rxb4 {[%clk 0:00:28]} 32. Rxf7 {[%clk 0:00:12]}  Rb2+ {[%clk 0:00:28]} 33. Kf1 {[%clk 0:00:11]}  Rxa2 {[%clk 0:00:16]} 34. Qd7 {[%clk 0:00:05]}  Rg8 {[%clk 0:00:11]} 35. h4 {[%clk 0:00:05]}  h5 {[%clk 0:00:09]} 36. g4 {[%clk 0:00:05]}  hxg4 {[%clk 0:00:09]} 37. fxg4 {[%clk 0:00:05]}  Rb2 {[%clk 0:00:06]} 38. h5 {[%clk 0:00:05]}  gxh5 {[%clk 0:00:06]} 39. gxh5 {[%clk 0:00:06]}  Rb4 {[%clk 0:00:05]} 40. Qf5+ {[%clk 0:00:06]}  Kh8 {[%clk 0:00:05]} 41. h6 {[%clk 0:00:06]} 1-0


[Site "https://www.chess.com"]

[Event "Titled Tuesday Blitz May 10 Early 2022"]
[White "Cunjalo, Faris"]
[Black "Jeet, Jain"]
[WhiteFideId "14410710"]
[BlackFideId "5073022"]
[WhiteElo "2263"]
[BlackElo "2028"]
[Result "1-0"]
[Round "02"]
[TimeControl "180+1"]
[Date "2022.05.10"]
[WhiteClock "0:00:11"]
[BlackClock "0:00:12"]

1. d4 {[%clk 0:03:00]}  Nf6 {[%clk 0:02:58]} 2. c4 {[%clk 0:03:01]}  g6 {[%clk 0:02:58]} 3. Nc3 {[%clk 0:02:57]}  Bg7 {[%clk 0:02:58]} 4. e4 {[%clk 0:02:56]}  d6 {[%clk 0:02:59]} 5. Be2 {[%clk 0:02:57]}  O-O {[%clk 0:02:58]} 6. Bg5 {[%clk 0:02:57]}  c5 {[%clk 0:02:56]} 7. d5 {[%clk 0:02:58]}  b5 {[%clk 0:02:48]} 8. cxb5 {[%clk 0:02:58]}  a6 {[%clk 0:02:48]} 9. bxa6 {[%clk 0:02:07]}  Qa5 {[%clk 0:02:46]} 10. Bd2 {[%clk 0:02:04]}  Bxa6 {[%clk 0:02:43]} 11. Nf3 {[%clk 0:02:04]}  Nbd7 {[%clk 0:02:40]} 12. O-O {[%clk 0:02:02]}  Rfb8 {[%clk 0:02:40]} 13. Bxa6 {[%clk 0:01:47]}  Qxa6 {[%clk 0:02:37]} 14. Qc2 {[%clk 0:01:47]}  Ne8 {[%clk 0:02:33]} 15. Bg5 {[%clk 0:01:43]}  Nef6 {[%clk 0:01:59]} 16. Rfe1 {[%clk 0:01:42]}  Rb7 {[%clk 0:01:51]} 17. h3 {[%clk 0:01:22]}  Rab8 {[%clk 0:01:43]} 18. Rab1 {[%clk 0:01:19]}  h6 {[%clk 0:01:40]} 19. Bf4 {[%clk 0:01:12]}  Nb6 {[%clk 0:01:31]} 20. b3 {[%clk 0:01:09]}  Ne8 {[%clk 0:01:26]} 21. e5 {[%clk 0:01:06]}  Qa5 {[%clk 0:01:15]} 22. Bd2 {[%clk 0:00:58]}  Nc7 {[%clk 0:01:10]} 23. exd6 {[%clk 0:00:54]}  exd6 {[%clk 0:01:10]} 24. Ne4 {[%clk 0:00:54]}  Qa3 {[%clk 0:01:04]} 25. Nxd6 {[%clk 0:00:54]}  Ra7 {[%clk 0:01:04]} 26. Ne5 {[%clk 0:00:32]}  Qxa2 {[%clk 0:00:56]} 27. Rb2 {[%clk 0:00:32]}  Qa3 {[%clk 0:00:46]} 28. Ndxf7 {[%clk 0:00:31]}  Ncxd5 {[%clk 0:00:41]} 29. Nxh6+ {[%clk 0:00:30]}  Bxh6 {[%clk 0:00:27]} 30. Bxh6 {[%clk 0:00:31]}  Ne7 {[%clk 0:00:16]} 31. Nc4 {[%clk 0:00:23]}  Nxc4 {[%clk 0:00:15]} 32. Qxc4+ {[%clk 0:00:20]}  Kh7 {[%clk 0:00:15]} 33. Rbe2 {[%clk 0:00:16]}  Nf5 {[%clk 0:00:14]} 34. Bg5 {[%clk 0:00:13]}  Qxb3 {[%clk 0:00:14]} 35. Qxc5 {[%clk 0:00:13]}  Qb6 {[%clk 0:00:13]} 36. Qd5 {[%clk 0:00:11]}  Qb7 {[%clk 0:00:12]} 37. Qe5 {[%clk 0:00:10]}  Qg7 {[%clk 0:00:12]} 38. Qxb8 {[%clk 0:00:10]}  Rb7 {[%clk 0:00:12]} 39. Qxb7 {[%clk 0:00:09]}  Qxb7 {[%clk 0:00:12]} 40. Re7+ {[%clk 0:00:10]}  Nxe7 {[%clk 0:00:12]} 41. Rxe7+ {[%clk 0:00:11]} 1-0


[Site "https://www.chess.com"]

[Event "Titled Tuesday Blitz May 10 Early 2022"]
[White "Czerw, Dawid"]
[Black "Sokolovsky, Yahli"]
[WhiteFideId "1145746"]
[BlackFideId "2820242"]
[WhiteElo "2125"]
[BlackElo "1770"]
[Result "1/2-1/2"]
[Round "02"]
[TimeControl "180+1"]
[Date "2022.05.11"]
[WhiteClock "0:00:15"]
[BlackClock "0:00:12"]

1. d4 {[%clk 0:03:00]}  d5 {[%clk 0:02:58]} 2. c4 {[%clk 0:03:00]}  c6 {[%clk 0:02:53]} 3. cxd5 {[%clk 0:02:58]}  cxd5 {[%clk 0:02:53]} 4. Bg5 {[%clk 0:02:58]}  Nc6 {[%clk 0:02:45]} 5. Nc3 {[%clk 0:02:57]}  Qa5 {[%clk 0:02:05]} 6. Nf3 {[%clk 0:02:52]}  e6 {[%clk 0:02:03]} 7. a3 {[%clk 0:02:48]}  Be7 {[%clk 0:01:50]} 8. h4 {[%clk 0:02:41]}  Nf6 {[%clk 0:01:46]} 9. e3 {[%clk 0:02:37]}  Ne4 {[%clk 0:01:28]} 10. Bxe7 {[%clk 0:02:38]}  Nxc3 {[%clk 0:01:00]} 11. Qd2 {[%clk 0:02:07]}  Nxe7 {[%clk 0:00:35]} 12. Rc1 {[%clk 0:02:01]}  Bd7 {[%clk 0:00:29]} 13. Rxc3 {[%clk 0:01:57]}  O-O {[%clk 0:00:26]} 14. Bd3 {[%clk 0:01:53]}  Rac8 {[%clk 0:00:20]} 15. b4 {[%clk 0:01:31]}  Qb6 {[%clk 0:00:18]} 16. Rc5 {[%clk 0:01:11]}  Qd6 {[%clk 0:00:14]} 17. O-O {[%clk 0:00:54]}  b6 {[%clk 0:00:14]} 18. Rc2 {[%clk 0:00:43]}  Rxc2 {[%clk 0:00:12]} 19. Qxc2 {[%clk 0:00:44]}  h6 {[%clk 0:00:13]} 20. Ne5 {[%clk 0:00:42]}  Rc8 {[%clk 0:00:12]} 21. Qd2 {[%clk 0:00:39]}  Be8 {[%clk 0:00:08]} 22. Rc1 {[%clk 0:00:35]}  Rc7 {[%clk 0:00:08]} 23. f4 {[%clk 0:00:30]}  Nc6 {[%clk 0:00:07]} 24. Bb5 {[%clk 0:00:24]}  Nxe5 {[%clk 0:00:05]} 25. fxe5 {[%clk 0:00:22]}  Rxc1+ {[%clk 0:00:05]} 26. Qxc1 {[%clk 0:00:23]}  Qd8 {[%clk 0:00:06]} 27. Bxe8 {[%clk 0:00:19]}  Qxe8 {[%clk 0:00:07]} 28. Qc7 {[%clk 0:00:19]}  Qa4 {[%clk 0:00:07]} 29. Qe7 {[%clk 0:00:12]}  Qd1+ {[%clk 0:00:05]} 30. Kh2 {[%clk 0:00:12]}  Qg4 {[%clk 0:00:05]} 31. Qe8+ {[%clk 0:00:12]}  Kh7 {[%clk 0:00:06]} 32. Qxf7 {[%clk 0:00:11]}  Qxh4+ {[%clk 0:00:06]} 33. Kg1 {[%clk 0:00:11]}  Qe1+ {[%clk 0:00:07]} 34. Kh2 {[%clk 0:00:12]}  Qh4+ {[%clk 0:00:04]} 35. Kg1 {[%clk 0:00:12]}  Qg4 {[%clk 0:00:04]} 36. Qxa7 {[%clk 0:00:09]}  Qd1+ {[%clk 0:00:05]} 37. Kf2 {[%clk 0:00:09]}  Qd2+ {[%clk 0:00:05]} 38. Kf3 {[%clk 0:00:09]}  Qd1+ {[%clk 0:00:06]} 39. Kf2 {[%clk 0:00:10]}  Qc2+ {[%clk 0:00:06]} 40. Kg3 {[%clk 0:00:09]}  Qg6+ {[%clk 0:00:06]} 41. Kf3 {[%clk 0:00:10]}  Qe4+ {[%clk 0:00:05]} 42. Kf2 {[%clk 0:00:10]}  Qc2+ {[%clk 0:00:05]} 43. Kg1 {[%clk 0:00:09]}  Qc1+ {[%clk 0:00:05]} 44. Kh2 {[%clk 0:00:10]}  Qxe3 {[%clk 0:00:06]} 45. Qxb6 {[%clk 0:00:10]}  Qf4+ {[%clk 0:00:06]} 46. Kg1 {[%clk 0:00:11]}  Qc1+ {[%clk 0:00:07]} 47. Kf2 {[%clk 0:00:11]}  Qd2+ {[%clk 0:00:07]} 48. Kf3 {[%clk 0:00:12]}  Qd3+ {[%clk 0:00:08]} 49. Kf2 {[%clk 0:00:12]}  Qd2+ {[%clk 0:00:09]} 50. Kg1 {[%clk 0:00:13]}  Qe1+ {[%clk 0:00:09]} 51. Kh2 {[%clk 0:00:13]}  Qh4+ {[%clk 0:00:10]} 52. Kg1 {[%clk 0:00:14]}  Qe1+ {[%clk 0:00:11]} 53. Kh2 {[%clk 0:00:14]}  Qh4+ {[%clk 0:00:11]} 54. Kg1 {[%clk 0:00:15]}  Qe1+ {[%clk 0:00:12]} 1/2-1/2


[Site "https://www.chess.com"]

[Event "Titled Tuesday Blitz May 10 Early 2022"]
[White "Demchenko, Anton"]
[Black "Juhasz, Agoston"]
[WhiteFideId "4160258"]
[BlackFideId "778346"]
[WhiteElo "2539"]
[BlackElo "2211"]
[Result "1-0"]
[Round "02"]
[TimeControl "180+1"]
[Date "2022.05.10"]
[WhiteClock "0:01:42"]
[BlackClock "0:00:08"]

1. e4 {[%clk 0:02:58]}  c5 {[%clk 0:02:56]} 2. Nf3 {[%clk 0:02:58]}  d6 {[%clk 0:02:55]} 3. d4 {[%clk 0:02:58]}  cxd4 {[%clk 0:02:56]} 4. Qxd4 {[%clk 0:02:59]}  Nf6 {[%clk 0:02:53]} 5. Nc3 {[%clk 0:02:58]}  g6 {[%clk 0:02:48]} 6. e5 {[%clk 0:02:55]}  dxe5 {[%clk 0:02:06]} 7. Qxd8+ {[%clk 0:02:54]}  Kxd8 {[%clk 0:02:07]} 8. Nxe5 {[%clk 0:02:55]}  Be6 {[%clk 0:02:06]} 9. Bf4 {[%clk 0:02:50]}  Nbd7 {[%clk 0:02:02]} 10. O-O-O {[%clk 0:02:48]}  Bg7 {[%clk 0:01:42]} 11. Be2 {[%clk 0:02:42]}  Kc8 {[%clk 0:01:36]} 12. Nc4 {[%clk 0:02:37]}  Rd8 {[%clk 0:01:12]} 13. Na5 {[%clk 0:02:29]}  Nh5 {[%clk 0:00:42]} 14. Bd2 {[%clk 0:02:16]}  Be5 {[%clk 0:00:37]} 15. Bf3 {[%clk 0:02:14]}  Nc5 {[%clk 0:00:28]} 16. Be3 {[%clk 0:02:03]}  Rxd1+ {[%clk 0:00:19]} 17. Rxd1 {[%clk 0:02:03]}  Bf4 {[%clk 0:00:11]} 18. Nd5 {[%clk 0:01:43]}  Bxd5 {[%clk 0:00:09]} 19. Rxd5 {[%clk 0:01:43]}  Bxe3+ {[%clk 0:00:08]} 20. fxe3 {[%clk 0:01:44]}  b6 {[%clk 0:00:08]} 21. Rxc5+ {[%clk 0:01:41]}  bxc5 {[%clk 0:00:08]} 22. Bxa8 {[%clk 0:01:42]} 1-0


[Site "https://www.chess.com"]